Cogmind - Beta 13 @@@ ROGUE MODE // 2024.07.28 @ 19:39:31 Player: CrossedViper Result: Destroyed by JZ-UYG(R) with Subdweller Machine Gun Performance ------------- Evolutions (0) 0 Regions Visited (2) 400 Robots Destroyed (7) 35 Value Destroyed (280) 280 Prototype IDs (10) 200 Alien Tech Used (0) 0 Bonus (-51) -51 TOTAL SCORE: 864 Bonus ------- Friendly Fire -51 Cogmind --------- Core Integrity 0/250 Matter 297/300 Energy 250/250 System Corruption 0% Temperature Cool (0) Movement Rolling (105) Location -10/Subcaves Parts ------- > --- POWER (1) -------- Ion Engine > --- PROPULSION (2) --- Compact Wheel Subdweller Monowheel > --- UTILITY (2) ------ Small Storage Unit > --- WEAPON (2) ------- Small Laser Battle Rifle > --- INVENTORY (8) ---- Subdweller Power Source Arachnoskeleton Small Laser Subdweller Beam Cannon Assault Rifle Subdweller Shrapnel Launcher Peak State ------------ > --- POWER ------------ Ion Engine > --- PROPULSION ------- Compact Wheel Subdweller Monowheel > --- UTILITY ---------- Small Storage Unit > --- WEAPON ----------- Small Laser Battle Rifle > --- INVENTORY -------- Subdweller Power Source Arachnoskeleton Small Laser Subdweller Beam Cannon Assault Rifle Subdweller Shrapnel Launcher [Rating: 10] Favorites ----------- Power Ion Engine Engine Ion Engine Propulsion Light Treads Treads Light Treads Wheel Compact Wheel Utility Small Storage Unit Storage Small Storage Unit Weapon Small Laser Energy Gun Small Laser Ballistic Gun Battle Rifle Build | -11 -10 -10 ------- Run | Yrd Mat Sub Slots Evolved . | . . . Power . | . . . Propulsion . | . . . Utility . | . . . Weapon . | . . . Parts Attached 14 | 6 . 8 Power 2 | 1 . 1 Engine 2 | 1 . 1 Core . | . . . Reactor . | . . . Propulsion 5 | 2 . 3 Treads 2 | 2 . . Leg . | . . . Wheel 3 | . . 3 Hover . | . . . Flight . | . . . Utility 1 | 1 . . Device . | . . . Storage 1 | 1 . . Processor . | . . . Hackware . | . . . Protection . | . . . Artifact . | . . . Weapon 6 | 2 . 4 Energy Gun 3 | 2 . 1 Energy Cannon . | . . . Ballistic Gun 3 | . . 3 Ballistic Cannon . | . . . Launcher . | . . . Special Weapon . | . . . Impact Weapon . | . . . Slashing Weapon . | . . . Piercing Weapon . | . . . Special Melee Weapon . | . . . Unidentified Prototypes . | . . . Parts Lost 6 | . . 6 Power 1 | . . 1 Propulsion 3 | . . 3 Utility . | . . . Weapon 2 | . . 2 Highest Loss Streak 6 | . . 6 To Critical Strikes . | . . . Average Slot Usage (%) 84 | . 85 84 Engine 14 | . 14 14 Treads 22 | . 28 21 Wheel 4 | . . 6 Storage 14 | . 14 14 Energy Gun 11 | . 28 5 Ballistic Gun 16 | . . 22 Naked Turns . | . . . Heaviest Build 16 | 12 12 16 Greatest Support 40 | 40 40 40 Greatest Overweight (x) 3 | 3 . . Average Overweight (x) . | . . . Largest Inventory Capacity 8 | 8 8 8 Average Capacity 7 | 7 8 8 Most Carried 8 | 3 3 8 Average Carried 5 | 2 3 6 Final Capacity 8 | 8 8 8 Final Carried 8 | 3 3 8 Class Distribution -------------------- 100% | Mutant Dominant Class ---------------- Mutant | -10/Materials Mutant | -10/Subcaves Resources | -11 -10 -10 ----------- Run | Yrd Mat Sub Matter Collected 464 | 191 . 273 Remotely . | . . . Salvage Created 253 | . . 253 Parts 24 | . . 24 Haulers Intercepted . | . . . Recyclers Shooed . | . . . Parts Field Recycled . | . . . Retrieved Matter . | . . . Parts Self-Destructed . | . . . Prevented . | . . . Kills | -11 -10 -10 ------- Run | Yrd Mat Sub Combat Hostiles Destroyed 7 | . . 7 Guns 7 | . . 7 Classes Destroyed 2 | . . 2 Artisan 1 | . . 1 Subdweller 7 | . . 7 Best Kill Streak 3 | . . 3 Combat Bots Only 3 | . . 3 Max Kills in Single Turn 1 | . . 1 Gunslinging . | . . . Exploded . | . . . Melee . | . . . Uniques/NPCs Destroyed . | . . . Combat | -11 -10 -10 -------- Run | Yrd Mat Sub Hostile Shots Fired 47 | . . 47 Missed 9 | . . 9 Damage Taken 970 | . . 970 Core 259 | . . 259 Absorbed by Shields . | . . . Core Remaining (%) 100 | 100 . . Volleys Fired 37 | . . 37 Largest 2 | . . 2 Hottest 65 | . . 65 Shots Fired 74 | . . 74 Gun 74 | . . 74 Cannon . | . . . Launcher . | . . . Special . | . . . Kinetic 60 | . . 60 Thermal 14 | . . 14 Explosive . | . . . Electromagnetic . | . . . Robot Hit Streak 14 | . . 14 Robot Miss Streak 3 | . . 3 Penetration Max . | . . . Secondary Targets . | . . . Shots Hit Robots 56 | . . 56 Core Hits 15 | . . 15 Critical Kills . | . . . Critical Parts Destroyed . | . . . Critical Strikes . | . . . Melee Attacks . | . . . Impact . | . . . Slashing . | . . . Piercing . | . . . Sneak Attacks . | . . . Combat Hostiles . | . . . Follow-up Attacks . | . . . Damage Inflicted 957 | . . 957 Guns 957 | . . 957 Cannons . | . . . Explosions . | . . . Melee . | . . . Ramming . | . . . Kinetic 831 | . . 831 Thermal 126 | . . 126 Explosive . | . . . Electromagnetic . | . . . Impact . | . . . Slashing . | . . . Piercing . | . . . Highest Corruption . | . . . Average Corruption . | . . . Corruption Purged . | . . . Corruption Blocked . | . . . Overload Shots . | . . . Overflow Damage . | . . . Projectiles . | . . . Explosions . | . . . Melee . | . . . Knockbacks . | . . . Impact . | . . . Kinetic . | . . . Secondary . | . . . Self-Inflicted Damage . | . . . Shots . | . . . Rammed . | . . . Targets Rammed . | . . . Kicked . | . . . Crushed . | . . . Highest Temperature 1 | . . 1 Average Temperature 1 | . . 1 Received Heat Transfer 108 | . . 108 Siege Activations . | . . . Robots Corrupted . | . . . Combat Hostiles . | . . . Parts Fried . | . . . Impact Corruptions . | . . . Robots Melted . | . . . Combat Hostiles . | . . . Parts Melted . | . . . Heat Transferred 275 | . . 275 Parts Sabotaged . | . . . Parts Stolen . | . . . Parts Stripped . | . . . Power Chain Reactions . | . . . Alert | -11 -10 -10 ------- Run | Yrd Mat Sub Peak Influence . | . . . Initial . | . . . Average . | . . . Maximum Alert Level . | . . . Low Security (%) 100 | 100 100 . Level 1 . | . . . Level 2 . | . . . Level 3 . | . . . Level 4 . | . . . Level 5 . | . . . High Security . | . . . Max Security . | . . . Squads Dispatched . | . . . Investigation . | . . . Extermination . | . . . Reinforcement . | . . . Assault . | . . . Garrison . | . . . Intercept . | . . . Searches Triggered . | . . . Construction Impeded . | . . . Haulers Reinforced . | . . . Active Scanning Responses . | . . . Cargo Convoy Interrupts . | . . . Stealth | -11 -10 -10 --------- Run | Yrd Mat Sub Distress Signals . | . . . Communications Jammed . | . . . Distress Signals . | . . . Times Spotted 8 | . . 8 Peak Tracking Total 2 | . . 2 Tactical Retreats . | . . . Traps | -11 -10 -10 ------- Run | Yrd Mat Sub Traps Triggered 1 | . . 1 Indirectly . | . . . Trap Hack Attempts . | . . . Triggered . | . . . Disarmed . | . . . Reprogrammed . | . . . Reused . | . . . Traps Extracted . | . . . Installed . | . . . Triggered . | . . . Machines | -11 -10 -10 ---------- Run | Yrd Mat Sub Machines Disabled 2 | . . 2 Max in Single Turn 1 | . . 1 Machines Repaired . | . . . Machines Dismantled . | . . . Machines Sabotaged . | . . . Overloaded Fab Kills . | . . . Hacking | -11 -10 -10 --------- Run | Yrd Mat Sub Machines Accessed 1 | . . 1 Terminals . | . . . Fabricators . | . . . Repair Stations . | . . . Recycling Units . | . . . Scanalyzers . | . . . Garrison Access . | . . . Total Hacks 1 | . . 1 Successful 1 | . . 1 Failed . | . . . Catastrophic . | . . . Database Lockouts . | . . . Manual . | . . . Terminals . | . . . Fabricators . | . . . Repair Stations . | . . . Recycling Units . | . . . Scanalyzers . | . . . Garrison Access . | . . . Terminal Hacks 1 | . . 1 Derelict Proto ID Bank 1 | . . 1 Fabricator Hacks . | . . . Repair Station Hacks . | . . . Recycling Unit Hacks . | . . . Scanalyzer . | . . . Garrison Access Hacks . | . . . Unauthorized Hacks . | . . . Terminals . | . . . Fabricators . | . . . Repair Stations . | . . . Recycling Units . | . . . Scanalyzers . | . . . Garrison Access . | . . . Data Cores Recovered . | . . . Used . | . . . Hacking Detections . | . . . Full Trace Events . | . . . Feedback Events . | . . . Feedback Blocked . | . . . Robot Schematics Acquired . | . . . Robots Built . | . . . Authchips . | . . . Time . | . . . Total Robot Build Rating . | . . . Part Schematics Acquired . | . . . Parts Built . | . . . Authchips . | . . . Time . | . . . Total Part Build Rating . | . . . Parts Repaired . | . . . Time . | . . . Parts Recycled . | . . . Recycled Matter . | . . . Retrieved Matter . | . . . Retrieved Components . | . . . Parts Scanalyzed . | . . . Part Schematics Acquired . | . . . Parts Damaged . | . . . Bothacking | -11 -10 -10 ------------ Run | Yrd Mat Sub Used RIF Installer . | . . . Robots Hacked . | . . . Non-combat . | . . . Combat . | . . . Robot Hacks Applied . | . . . Relay Couplers Released . | . . . Fabnet Peak Effective % . | . . . Robots Rewired . | . . . Allies Hacked . | . . . Hacks Repelled . | . . . Allies | -11 -10 -10 -------- Run | Yrd Mat Sub Total Allies . | . . . Largest Group . | . . . Highest-Rated Group . | . . . Highest-Rated Ally . | . . . Total Orders . | . . . Ally Attacks . | . . . Total Damage . | . . . Kills . | . . . Allies Corrupted . | . . . Allies Melted . | . . . Intel | -11 -10 -10 ------- Run | Yrd Mat Sub Robot Analysis Total . | . . . Derelict Logs Recovered . | . . . Drone Launches . | . . . Drone Recoveries . | . . . Exploration | -11 -10 -10 ------------- Run | Yrd Mat Sub Turns Passed 1456 | 91 385 980 Spaces Moved 729 | 56 80 593 Core 16 | 16 . . Treads 521 | 40 80 401 Legs . | . . . Wheels 192 | . . 192 Hover . | . . . Flight . | . . . Fastest Speed 50 | 50 160 105 Average Speed 144 | 141 160 142 Slowest Speed 200 | 200 160 160 Overloaded Moves . | . . . Propulsion Burnouts . | . . . Robots Hopped . | . . . Cave-ins Triggered . | . . . Exploration Rate (%) 16 | 5 9 34 Regions Visited 2 Branch Regions 1 Pre-discovered Areas . | . . . Known Exits Taken . | . . . Unknown Exits Taken 2 | 1 1 . Scrap Searched 3 | . . 3 Spaces Dug . | . . . Terrain Destroyed . | . . . Melee . | . . . Projectile . | . . . AOE . | . . . Terrain Rammed . | . . . Walls Destroyed . | . . . Machines Disabled . | . . . Actions | -11 -10 -10 --------- Run | Yrd Mat Sub Total 1062 | 66 337 659 Wait 270 | . 258 12 Move 727 | 55 79 593 Hop . | . . . Pick Up 14 | 5 . 9 Fast Attach 4 | 4 . . Attach 8 | 2 . 6 Detach . | . . . Swap 2 | . . 2 Drop . | . . . Fire 37 | . . 37 Melee . | . . . Ram . | . . . Kick . | . . . Crush . | . . . Escape Stasis . | . . . Rewire . | . . . Trap . | . . . Miscellaneous . | . . . Route ------- -11/Scrapyard -10/Materials -10/Subcaves (discovered 2 exits: [*Mat x2]) History --------- Turn | Location | Event 6 | -11/Scrapyard | Discovered new exit (range 14) 92 | -11/Scrapyard | Entered Materials 302 | -10/Materials | Build established: Mutant 418 | -10/Materials | Discovered new exit (range 4) 477 | -10/Materials | Entered Subcaves 567 | -10/Subcaves | Visited 4L-MR0's lab 1032 | -10/Subcaves | Shifting Twisted Machinery released Hvy. Riot Gun 1039 | -10/Subcaves | Shifting Twisted Machinery released Flamer 1044 | -10/Subcaves | Discovered new exit (range 7) 1172 | -10/Subcaves | Discovered new exit (range 13) 1181 | -10/Subcaves | Ambushed by Subdwellers from Twisted Machinery 1197 | -10/Subcaves | Core integrity fell below 50% 1220 | -10/Subcaves | Core integrity fell below 20% 1257 | -10/Subcaves | Lost 6 parts (1p3n2w) 1373 | -10/Subcaves | Found Arachnoskeleton 1457 | -10/Subcaves | Destroyed by JZ-UYG(R) with Subdweller Machine Gun Last Messages --------------- 01205_ Battle Rifle destroyed. 01205_ Sub. Machine Gun destroyed. 01215_ Wheel destroyed. 01222_ W9-VAN(R) destroyed. 01224_ Ion Engine destroyed. 01226_ Lgt. Treads destroyed. 01239_ XH-RIB(R) affixes Scrap Shield Fragment to Scrap Shield. 01242_ XH-RIB(R) destroyed. 01245_ Acquired 85 matter. 01246_ Acquired 29 matter. 01249_ Acquired Sub. Beam Cannon. 01252_ Acquired Assault Rifle. 01256_ Acquired Sub. Power Source. 01304_ Subatomizers dissect the Sub. Monowheel. 01373_ Acquired Arachnoskeleton. 01382_ Machine disabled. 01385_ 4L-MR0 cries out in pain. 01385_ 4L-MR0 destroyed. 01388_ Acquired 6 matter. Map ----- +----------------------------------------------------+ | ?????????????????????????????????????????????????? | | ?????????????????????????????????????????????????? | | ###??????????????????????????####????????????????? | | ""#########??????#####????### #????????????????? | | |" ## # #??????# ###### #????????????????? | | " ##?????# ## #????????????????? | | # # ##?###?# #????????????????? | | ""## ## ### ### ######???????????? | | "## #???????????? | | "# # #???????????? | | " # ### #????????????? | | #[" ##############?# ## #????????????? | | ##" ##?????????????## ### ##????????????? | | ?####??????????????# #?# ##?????????????? | | ???????????????????## ####RR #??????????????? | | ????????????????????## ### ##??????????????? | | ????????????????????## #; ####???????????????? | | ????????????????????# ##???###????????????? | | ????????????????????#### #????# #####????????? | | ?????????????????????### #????# ## ######???? | | ?????????????????????# ##????# ##??? | | ?????????????????????## ##?????# ### ##?? | | ??????????????????????### ####???# ### ##?## ##? | | ????????????????????????# ##### ##?###?## ## | | ????????????????????????# #?????## ### # | | ????????????????????????#@#### #?##### ## | | ????????????????????????# # ## ##?# #### | | ????????????????????????# ##?## ##?# ! | | ??????????####?????????## ### #??# ! | | ????####??# ##????????# ## ### ## #### | | ????#""#### ##??????## ##### #?? | | ????# " " " #??????# ##???## ##?? | | ????## " "###????### #?????# ### | | ?????# " " #?###### # ##???# ""#?##" | | ????## " ###""" " ###????# ### """#?## | | ??### #"" = & ###??####### ##?## """"??? | | ??# ## &* # ## ###?###???? """"??? | | ??# ## #??????? ???? | | ??# #??????? ??? | | ??# ## # # #??????? ??? | | ??# ## #?##?# ?????????# ??? | | ### ## ### ###????? ????????### ?? | | # ### ## ! #??????? ????????????#?? | | ## ##?# ##" ## * #??????????????????????? | | ?###?# # ### &&##??????????????????????? | | ?????## " # ""#?# ##???????????????????????? | | ???### "" # #?## ????????????????????????? | | "### ## " # #?? ???????????????????????? | | """ " " ## #??## ??????????????????????? | | "## " ## " " #????# ?????????????????????? | +----------------------------------------------------+ Best States ------------- Heat Dissipation 25 Energy Generation 10 Energy Capacity 250 Matter Stores 300 Matter Capacity 300 Sight Range 16 Terrain Scan Density 10 Evasion (%) 50 Recoil Reduction 2 Item Schematics ----------------- None Robot Schematics ------------------ None Fabricated ------------ Nothing Alien Tech Used ----------------- None Achievements -------------- None Challenges ------------ None Game ------ Seed TerrainConstructAutocannon Manual? 0 Play Time 00:08:06 Cumulative 844.9 hours Start 2024.07.28 @ 19:31:21 End 2024.07.28 @ 19:39:31 Sessions 1 Manual Loads 0 Difficulty Rogue Special Mode None Game No. 535 Rogue 528 Adventurer 0 Explorer 7 Win Type - Total 56 Types 21/5/19/2/0/1/6/1/1 Lore% 90 Gallery% 97 Achievement% 84 Wizard Run 0 Options --------- Layout 2 ASCII 0 Keyboard 0 Movement Numpad Keybinds 0 Fullscreen 1 Font 24/Tamsyn Map View 50x44 Zoom Use 0% Tactical HUD 1 Map Filters NONE Filters NONE Steam 1 RUN: d5f1f19d-8b80-4323-9b96-9ad52ed42897